Cogmind - Beta 17 @@@ ROGUE MODE // 2026.07.26 @ 10:30:32 Player: 50l Result: Self-destructed Performance ------------- Evolutions (1) 500 Regions Visited (3) 600 Robots Destroyed (26) 130 Value Destroyed (521) 521 Prototype IDs (3) 60 Alien Tech Used (0) 0 Bonus (98) 98 TOTAL SCORE: 1909 Bonus ------- High Alert Combat Kills 38 Follower Combat Kills 60 Cogmind --------- Core Integrity 143/400 Matter 142/300 Energy 90/100 System Corruption 0% Temperature Cool (0) Movement Flying (37) Location -9/Materials Parts ------- > --- POWER (1) -------- (None) > --- PROPULSION (2) --- Flight Unit Improved Flight Unit > --- UTILITY (4) ------ Small Storage Unit Seismic Detector > --- WEAPON (2) ------- Mining Claw > --- INVENTORY (8) ---- Improved Ion Engine High-capacity Storage Unit Experimental Sensor Array Improved Terrain Scanner Sensor Drone Bay (20/20) Light Assault Rifle Peak State ------------ > --- POWER ------------ (None) > --- PROPULSION ------- Improved Flight Unit Improved Flight Unit > --- UTILITY ---------- Small Storage Unit Experimental Sensor Array Seismic Detector Sensor Drone Bay > --- WEAPON ----------- Grenade Launcher > --- INVENTORY -------- Improved Ion Engine Flight Unit High-capacity Storage Unit Improved Terrain Scanner Light Assault Rifle Mining Claw [Rating: 26] Favorites ----------- Power Light Ion Engine Engine Light Ion Engine Propulsion Improved Flight Unit Leg Aluminum Leg Wheel Wheel Flight Unit Improved Flight Unit Utility Small Storage Unit Device Seismic Detector Storage Small Storage Unit Weapon Light Assault Rifle Ballistic Gun Light Assault Rifle Launcher Grenade Launcher Slashing Weapon Mining Claw Build | -11 -10 -10 -9 ------- Run | Yrd Mat Min Mat Slots Evolved 2 | . . . 2 Power . | . . . . Propulsion . | . . . . Utility 2 | . . . 2 Weapon . | . . . . Parts Attached 20 | 7 8 . 5 Power 2 | 1 . . 1 Engine 2 | 1 . . 1 Core . | . . . . Reactor . | . . . . Propulsion 7 | 2 4 . 1 Treads . | . . . . Leg 2 | 2 . . . Wheel 2 | . 2 . . Hover . | . . . . Flight 3 | . 2 . 1 Utility 5 | 2 1 . 2 Device 3 | 1 . . 2 Storage 2 | 1 1 . . Processor . | . . . . Hackware . | . . . . Protection . | . . . . Artifact . | . . . . Weapon 6 | 2 3 . 1 Energy Gun . | . . . . Energy Cannon . | . . . . Ballistic Gun 3 | 2 1 . . Ballistic Cannon . | . . . . Launcher 2 | . 1 . 1 Special Weapon . | . . . . Impact Weapon . | . . . . Slashing Weapon 1 | . 1 . . Piercing Weapon . | . . . . Special Melee Weapon . | . . . . Unidentified Prototypes 3 | . 1 . 2 Parts Lost 7 | . 4 . 3 Power 2 | . 1 . 1 Propulsion 4 | . 3 . 1 Utility . | . . . . Weapon 1 | . . . 1 Highest Loss Streak 3 | . 3 . 2 To Critical Strikes . | . . . . Average Backups 6 | 1 5 7 7 Power 1 | . 1 1 1 Propulsion . | . . 1 . Utility 2 | . 2 2 3 Weapon 1 | . 1 2 1 Tool/Special . | . . . . Unused Backups 8 | . 5 . 3 Power 2 | . 1 . 1 Propulsion . | . . . . Utility 5 | . 3 . 2 Weapon 1 | . 1 . . Tool/Special . | . . . . Average Slot Usage (%) 73 | . 82 71 57 Engine 3 | . 5 . 1 Leg 2 | . 5 . . Wheel 2 | . 4 . . Flight 19 | . 15 28 21 Device 12 | . 11 14 15 Storage 13 | . 14 14 11 Ballistic Gun 12 | . 23 . . Launcher 4 | . . 14 3 Slashing Weapon 1 | . . . 4 Peak Build Rating 26 | 7 11 11 26 Average Rating 9 | 5 8 10 13 On Entrance 7 | . 7 10 11 Avg Prop Armor Cover (%) 9 | . 9 . . Naked Turns . | . . . . Heaviest Build 144 | 12 144 9 10 Greatest Support 20 | 20 20 10 10 Greatest Overweight (x) 7 | . 7 . 1 Average Overweight (x) . | . . . . Largest Inventory Capacity 30 | 8 30 8 8 Average Capacity 10 | 7 12 8 8 Most Carried 13 | 3 13 8 8 Average Carried 6 | 1 5 7 7 Final Capacity 8 | 8 8 8 8 Final Carried 8 | 3 7 8 6 Class Distribution -------------------- 90% | Mutant 9% | Hauler-Mutant Dominant Class ---------------- Mutant | -10/Materials Mutant | -10/Mines Mutant | -9/Materials Resources | -11 -10 -10 -9 ----------- Run | Yrd Mat Min Mat Matter Collected 594 | 302 205 40 47 Remotely . | . . . . Salvage Created 504 | 147 146 12 199 Parts 34 | 4 9 5 16 Haulers Intercepted 1 | . 1 . . Recyclers Shooed . | . . . . Parts Field Recycled . | . . . . Retrieved Matter . | . . . . Parts Self-Destructed . | . . . . Prevented . | . . . . Parts Restored . | . . . . Kills | -11 -10 -10 -9 ------- Run | Yrd Mat Min Mat Combat Hostiles Destroyed 19 | . 5 3 11 Guns 3 | . 3 . . AOE 16 | . 2 3 11 Classes Destroyed 9 | 2 5 . 2 Builder 1 | . 1 . . Tunneler 2 | 2 . . . Hauler 1 | . 1 . . Recycler 1 | 1 . . . Watcher 2 | . 1 . 1 Swarmer 11 | . 3 3 5 Grunt 6 | . 2 . 4 Duelist 1 | . . . 1 Sentry 1 | . . . 1 Best Kill Streak 7 | 3 4 4 7 Combat Bots Only 7 | . 3 3 7 Max Kills in Single Turn 2 | 1 1 2 2 Gunslinging . | . . . . Exploded 2 | . 1 2 2 Melee . | . . . . Uniques/NPCs Destroyed . | . . . . Combat | -11 -10 -10 -9 -------- Run | Yrd Mat Min Mat Hostile Shots Fired 127 | . 49 6 72 Missed 46 | . 14 1 31 Hits 81 | . 35 5 41 Melee 1 | . . . 1 Projectile 80 | . 35 5 40 Critical Strikes 1 | . 1 . . Damage Taken 1046 | . 476 62 508 Core 472 | . 186 29 257 Absorbed by Shields . | . . . . Regen/Repaired (Parts) 11 | . 11 . . Core Remaining (%) 57 | 100 . 14 . Volleys Fired 50 | 8 28 2 12 Largest 2 | 2 2 1 1 Hottest 40 | 40 40 30 30 Shots Fired 83 | 16 53 2 12 Gun 66 | 16 50 . . Cannon . | . . . . Launcher 17 | . 3 2 12 Special . | . . . . Kinetic 66 | 16 50 . . Thermal . | . . . . Explosive 17 | . 3 2 12 Electromagnetic . | . . . . Robot Hit Streak 10 | 4 10 2 9 Robot Miss Streak 2 | 2 2 . . Penetration Max . | . . . . Secondary Targets . | . . . . Shots Hit Robots 51 | 9 33 2 7 Core Hits 41 | 6 15 3 17 Critical Kills . | . . . . Critical Parts Destroyed 1 | 1 . . . Critical Strikes 1 | 1 . . . Destroy 1 | 1 . . . Melee Attacks 17 | . 4 . 13 Impact . | . . . . Slashing 17 | . 4 . 13 Piercing . | . . . . Sneak Attacks 1 | . 1 . . Combat Hostiles . | . . . . Follow-up Attacks . | . . . . Damage Inflicted 1841 | 100 585 111 1045 Guns 344 | 96 248 . . Cannons . | . . . . Explosions 1462 | . 306 111 1045 Melee 31 | . 31 . . Ramming 4 | 4 . . . Kinetic 344 | 96 248 . . Thermal . | . . . . Explosive 1462 | . 306 111 1045 Electromagnetic . | . . . . Impact . | . . . . Slashing 31 | . 31 . . Piercing . | . . . . Highest Corruption . | . . . . Average Corruption . | . . . . Corruption Purged . | . . . . Corruption Blocked . | . . . . Overload Shots . | . . . . Overflow Damage 79 | . 15 . 64 Projectiles . | . . . . Explosions 79 | . 15 . 64 Melee . | . . . . Knockbacks . | . . . . Impact . | . . . . Kinetic . | . . . . Secondary . | . . . . Self-Inflicted Damage 32 | . 23 . 9 Shots 4 | . 3 . 1 Rammed . | . . . . Targets Rammed 1 | 1 . . . Kicked 1 | 1 . . . Crushed . | . . . . Highest Temperature 51 | . 51 . 6 Average Temperature 22 | . 23 . 4 Received Heat Transfer 420 | . 246 15 159 Siege Activations . | . . . . Martial Activations . | . . . . Shielding Activations . | . . . . Robots Disrupted . | . . . . Combat Hostiles . | . . . . Robots Corrupted . | . . . . Combat Hostiles . | . . . . Parts Fried . | . . . . Impact Corruptions . | . . . . Robots Melted . | . . . . Combat Hostiles . | . . . . Parts Melted . | . . . . Heat Transferred . | . . . . Parts Sabotaged . | . . . . Parts Stolen . | . . . . Parts Stripped . | . . . . Power Chain Reactions . | . . . . Alert | -11 -10 -10 -9 ------- Run | Yrd Mat Min Mat Maximum Alert Level 2 | . . . 2 Low Security (%) 88 | 100 100 100 50 Level 1 5 | . . . 23 Level 2 5 | . . . 26 Level 3 . | . . . . Level 4 . | . . . . Level 5 . | . . . . High Security . | . . . . Max Security . | . . . . Peak Influence 514 | 10 158 164 514 Initial 61 | . . 61 46 Average 99 | 1 48 126 224 Influence Increases 1162 | 15 312 219 616 Destroy 0b10 Robot/C 460 | . 100 140 220 Destroy 0b10 Robot/NC 35 | 15 15 . 5 Destroy Leader 86 | . 24 30 32 Allied During Kill 5 | . . 5 . Successful Hack 40 | . 16 . 24 Disable Machine 45 | . . 15 30 Destroy Structure 71 | . 7 14 50 Partial Spotted 45 | . . . 45 Lose Combat Pursuer 375 | . 150 15 210 Influence Decreases 670 | 15 154 257 244 Entered New Map 171 | . . 97 74 Time Decay 429 | 15 154 120 140 Lost Part 30 | . . . 30 Lost Ally 40 | . . 40 . Squads Dispatched 3 | . 1 . 2 Investigation 2 | . . . 2 Extermination . | . . . . Reinforcement 1 | . 1 . . Assault . | . . . . Garrison . | . . . . Intercept . | . . . . Searches Triggered . | . . . . Construction Impeded . | . . . . Haulers Reinforced . | . . . . Active Scanning Responses . | . . . . Cargo Convoy Interrupts . | . . . . Stealth | -11 -10 -10 -9 --------- Run | Yrd Mat Min Mat Distress Signals 3 | . . . 3 Communications Jammed . | . . . . Distress Signals . | . . . . Times Spotted 68 | . 23 7 38 Peak Tracking Total 11 | . 5 3 11 Tactical Retreats 12 | . 5 1 6 Traps | -11 -10 -10 -9 ------- Run | Yrd Mat Min Mat Traps Triggered 2 | . 1 . 1 Indirectly . | . . . . Trap Hack Attempts . | . . . . Triggered . | . . . . Disarmed . | . . . . Reprogrammed . | . . . . Reused . | . . . . Traps Extracted . | . . . . Installed . | . . . . Triggered . | . . . . Machines | -11 -10 -10 -9 ---------- Run | Yrd Mat Min Mat Machines Disabled 3 | . . 1 2 Max in Single Turn 1 | . . 1 1 Machines Repaired . | . . . . Machines Dismantled . | . . . . Machines Sabotaged . | . . . . Overloaded Fab Kills . | . . . . Hacking | -11 -10 -10 -9 --------- Run | Yrd Mat Min Mat Machines Accessed 17 | . 8 1 8 Terminals 14 | . 7 . 7 Fabricators . | . . . . Repair Stations 1 | . 1 . . Recycling Units . | . . . . Scanalyzers 1 | . . . 1 Garrison Access . | . . . . Total Hacks 44 | . 18 1 25 Successful 24 | . 12 1 11 Failed 20 | . 6 . 14 Catastrophic 3 | . . . 3 Database Lockouts . | . . . . Manual 33 | . 16 . 17 Terminals 40 | . 16 . 24 Fabricators . | . . . . Repair Stations 2 | . 2 . . Recycling Units . | . . . . Scanalyzers 1 | . . . 1 Garrison Access . | . . . . Terminal Hacks 4 | . 2 1 1 Robot Analysis 2 | . 2 . . Open Door 1 | . . 1 . Emergency Access Points 1 | . . . 1 Fabricator Hacks . | . . . . Repair Station Hacks 2 | . 2 . . Scan Component 1 | . 1 . . Repair 1 | . 1 . . Recycling Unit Hacks . | . . . . Scanalyzer 1 | . . . 1 Retrieve Study 1 | . . . 1 Garrison Access Hacks . | . . . . Unauthorized Hacks 17 | . 8 . 9 Terminals 17 | . 8 . 9 Botnet 8 | . 3 . 5 Skim 9 | . 5 . 4 Fabricators . | . . . . Repair Stations . | . . . . Recycling Units . | . . . . Scanalyzers . | . . . . Garrison Access . | . . . . Data Cores Recovered . | . . . . Used . | . . . . Hacking Detections 15 | . 8 . 7 Full Trace Events 1 | . . . 1 Feedback Events . | . . . . Feedback Blocked . | . . . . Robot Schematics Acquired . | . . . . Robots Built . | . . . . Authchips . | . . . . Time . | . . . . Total Robot Build Rating . | . . . . Part Schematics Acquired . | . . . . Parts Built . | . . . . Authchips . | . . . . Time . | . . . . Total Part Build Rating . | . . . . Part Studies Acquired 1 | . . . 1 Parts Repaired 1 | . 1 . . Time 51 | . 51 . . Parts Recycled . | . . . . Recycled Matter . | . . . . Retrieved Matter . | . . . . Retrieved Components . | . . . . Parts Scanalyzed . | . . . . Part Schematics Acquired . | . . . . Parts Damaged . | . . . . Bothacking | -11 -10 -10 -9 ------------ Run | Yrd Mat Min Mat Used RIF Installer . | . . . . Robots Hacked . | . . . . Non-combat . | . . . . Combat . | . . . . Robot Hacks Applied . | . . . . Relay Couplers Released . | . . . . Fabnet Peak Effective % . | . . . . Robots Rewired . | . . . . Allies Hacked . | . . . . Hacks Repelled . | . . . . Allies | -11 -10 -10 -9 -------- Run | Yrd Mat Min Mat Total Allies 3 | . . 3 . Largest Group 3 | . . 3 . Highest-Rated Group 40 | . . 40 . Highest-Rated Ally 16 | . . 16 . Total Orders . | . . . . Ally Attacks 32 | . . 32 . Total Damage 365 | . . 365 . Kills 4 | . . 4 . Allies Corrupted . | . . . . Allies Melted . | . . . . Intel | -11 -10 -10 -9 ------- Run | Yrd Mat Min Mat Active Infowar (turns) 1017 | 10 513 254 240 Sensors 127 | . . . 127 Seismic 895 | 10 513 254 118 Robot Analysis Total 2 | . 2 . . Derelict Logs Recovered 1 | . . 1 . Drone Launches . | . . . . Drone Recoveries . | . . . . Exploration | -11 -10 -10 -9 ------------- Run | Yrd Mat Min Mat Turns Passed 1315 | 112 651 254 298 Spaces Moved 1852 | 58 740 565 489 Core 3 | 1 2 . . Treads . | . . . . Legs 150 | 57 93 . . Wheels 35 | . 35 . . Hover . | . . . . Flight 1664 | . 610 565 489 Fastest Speed 37 | 50 37 37 37 Average Speed 46 | 118 54 37 37 Slowest Speed 190 | 120 190 37 110 Overloaded Moves . | . . . . Propulsion Burnouts . | . . . . Robots Hopped 16 | . 3 4 9 Potential Cave-ins . | . . . . Cave-ins Triggered . | . . . . Exploration Rate (%) 60 | 4 98 74 65 Regions Visited 3 Branch Regions 1 Pre-discovered Areas . | . . . . Known Exits Taken . | . . . . Unknown Exits Taken 3 | 1 1 1 . Scrap Searched 2 | . . 2 . Spaces Dug 5 | . 1 . 4 Terrain Destroyed 71 | . 7 14 50 Melee 5 | . 1 . 4 Projectile . | . . . . AOE 66 | . 6 14 46 Terrain Rammed . | . . . . Walls Destroyed . | . . . . Machines Disabled . | . . . . Actions | -11 -10 -10 -9 --------- Run | Yrd Mat Min Mat Total 2178 | 83 936 603 556 Wait 191 | 7 113 35 36 Move 1818 | 58 733 556 471 Hop 16 | . 3 4 9 Pick Up 26 | 3 19 3 1 Fast Attach 15 | 7 7 . 1 Attach 11 | . 5 . 6 Detach 4 | . 1 . 3 Swap 7 | . 3 1 3 Drop 23 | . 20 2 1 Fire 50 | 8 28 2 12 Melee 17 | . 4 . 13 Ram . | . . . . Kick . | . . . . Crush . | . . . . Escape Stasis . | . . . . Rewire . | . . . . Trap . | . . . . Miscellaneous . | . . . . Route ------- -11/Scrapyard -10/Materials (discovered 5 exits: *Mat x3 / *Min x2) -10/Mines (discovered 2 exits: *Mat / [*Exi]) -9/Materials (discovered 3 exits: *Mat / [*Min] / [*Sto]) History --------- Turn | Location | Event 12 | -11/Scrapyard | Discovered new exit (range 15) 113 | -11/Scrapyard | Entered Materials 180 | -10/Materials | Discovered new exit (range 14) 246 | -10/Materials | Discovered new exit (range 12) 395 | -10/Materials | Core integrity fell below 50% 415 | -10/Materials | Lost 3 parts (1p2n) 435 | -10/Materials | Discovered new exit (range 9) 447 | -10/Materials | Discovered new exit (range 10) 574 | -10/Materials | Repaired Imp. Flight Unit 579 | -10/Materials | Discovered new exit (range 13) 690 | -10/Materials | Build established: Mutant 764 | -10/Materials | Entered Mines 767 | -10/Mines | Core integrity fell below 20% 778 | -10/Mines | Assisted by bots powering up and referring to "LRC-V3" 841 | -10/Mines | Discovered new exit (range 5) 852 | -10/Mines | Found the Drone Emporium 853 | -10/Mines | Found Prototype Device 882 | -10/Mines | Learned 2 Materials zone layouts 900 | -10/Mines | Deemed a non-threat by the Exiles lab entrance 900 | -10/Mines | Discovered new exit (range 5) 954 | -10/Mines | Found a hidden stash of uninstalled traps 963 | -10/Mines | Found a damaged Exp. Sensor Array with a note attached 964 | -10/Mines | Found Prototype Device 1018 | -10/Mines | Entered Materials 1018 | -9/Materials | Evolved 2 slots: Utility x2 1019 | -9/Materials | Identified exit to Materials 1019 | -9/Materials | Identified Exp. Sensor Array 1020 | -9/Materials | Identified Sensor Drone Bay 1202 | -9/Materials | Discovered new exit (range 15) 1247 | -9/Materials | Core integrity fell below 50% 1271 | -9/Materials | Destroyed 7 combat bots 1291 | -9/Materials | Discovered new exit (range 6) 1316 | -9/Materials | Self-destructed Last Messages --------------- Terminal linked with 1 system. Please expand to 3 more systems! 01265_ U-05 Engineer lays Concrete. 01282_ Connecting with Terminal... >>Trojan(Skim) Trojan loaded successfully. Testing... Terminal linked with 2 systems. Please expand to 2 more systems! >>Trojan(Botnet) Trojan loaded successfully. Testing... Terminal linked with 3 systems. Awaiting botnet instructions. 01282_ ALERT: Suspicious activity at Terminal M008. Dispatching Investigation squad. 01290_ W-16 Scout sends out distress signal. 01291_ EXIT=FOUND 01307_ K-01 Serf cleans the Nuclear Reactor. Map ----- +----------------------------------------------------+ | ???# """ #?? ????????????#?# """#????# | | ???# #??????????????????# """#????### | | ???#/########??????????????????# #??????# | | ???# #???????????##########??# # """#??????# | | ???# #????????? ?# #??# # """#??????# | | ?### ######## # #??# # """#??????# | | # # #??# + """#??????# | | # # #??# # #??????# # | | + + #### #####+##??????# + | | # #"" + #???????# # | | # """ """ #"T # ##### #???????# # | | ?# """ """ ###"" # #???# #???????# # | | ?# """ """ #?# # #???# #???????# # | | ?# #?########## #???# #???????# # | | ?# ############ #####+##??????# # | | ?# """ """ # + # #??????# " | | ## """ """ # ##### # #??????# # | | """ """ # #???# # #??????# # | | ## # #???# + !!!#?????## # | | ?# + #???# #### !!!#?????# | | ?# # #???# #??# !! #?????# | | ?# #### ############ #??########?????# < | | ?# #""" # # #???????????????# | | ?# #" # # ###?????????????# | | ## #"| # """ # #?######??????###### | | # #"" < # """ @/ # ! #???????????? | | [# #"| # """ # # #???????????? | | # #" # === # + #???????????? | | # #""" # === # # """ #???????????? | | # #### ## === # # """ #???????????? | | ## ############ #? """ #???????????? | | #???????# #?######???????????? | | #???????# #??????????????????? | | """ ##+######### #??????????????????? | | """ ### ## #??????????????????? | | ### """ #?# """ !## #??????????????????? | | ??# """ ### """ ## #??????????????????? | | ??+ """ # """ ## #??????????????????? | | ??# + ## #??????????????????? | | ??# # """ + #??????????????????? | | ??######+####+#+# """ ## #??????????????????? | | ?????????#! # """ ## #??????????????????? | | ?????????# # ## #??????????????????? | | ?????????# ########### #??????????????????? | | ?????????# """ #?????????# #??????????????????? | | ?????????# """ #????????? #??????????????????? | | ?????????# """ #????????? #??????????????????? | | ?????????########????????? #??????????????????? | | ?????????????????????????? +??????????????????? | | ????????????????????????? #??????????????????? | +----------------------------------------------------+ Best States ------------- Heat Dissipation 28 Energy Generation 10 Energy Capacity 125 Matter Stores 300 Matter Capacity 300 Sight Range 16 Robot Scan Range 20 Terrain Scan Density 10 Evasion (%) 62 Item Schematics ----------------- None Robot Schematics ------------------ None Fabricated ------------ Nothing Repaired ---------- Imp. Flight Unit | 72% | -10/Materials Studied --------- Flight Unit | -9/Materials | Hacked Alien Tech Used ----------------- None Achievements -------------- None Challenges ------------ None Game ------ Seed AuthchipBehemothSpiker Manual? 0 Play Time 00:27:16 Cumulative 354.7 hours Start 2026.07.25 @ 21:43:19 End 2026.07.26 @ 10:30:32 Sessions 3 Manual Loads 0 Difficulty Rogue Special Mode None Game No. 206 Rogue 132 Adventurer 74 Explorer 0 Win Type - Total 17 Types 14/0/0/3/0/0/0/0/0/0 Lore% 74 Gallery% 68 Achievement% 53 Wizard Run 0 Options --------- Layout 2 ASCII 0 Keyboard 0 Movement Mouse Keybinds 0 Fullscreen 1 Font 32/SmallcapsGlow Map View 50x44 Zoom Use 0% Tactical HUD 1 Map Filters NONE Filters NONE Steam 1 RUN: 8039187a-345c-4342-8798-057d898229df